bitfinex-derivatives/quotes_SOLF0:USTF0_20241231
["timestamp","ask_amount","ask_price","bid_price","bid_amount"]
[1735658714502,2.5321,197.75,197.71,2.5326]
[1735658715103,2.5321,197.75,197.67,12.31549999]
[1735658715104,15.61549999,197.79,197.66,3.3]
[1735658715605,2.532,197.76,197.7,2.5326]
[1735658715805,15.61549999,197.79,197.67,12.31549999]
[1735658716401,12.31549999,197.78,197.67,12.31549999]
[1735658716602,12.31549999,197.75,197.67,3.3]
[1735658716905,2.533,197.68,197.65,1.5972]
[1735658717409,2.5329,197.69,197.65,4.1305]
[1735658718306,2.533,197.68,197.65,4.1305]
[1735658718503,3.3,197.74,197.65,1.5972]
[1735658718706,2.5332,197.67,197.63,2.5336]
[1735658719108,12.31549999,197.72,197.61,2.9793]
[1735658719312,2.5333,197.66,197.62,2.5337]
[1735658719604,2.5333,197.66,197.61,2.9793]
[1735658719910,2.5331,197.67,197.63,2.5335]
[1735658720501,2.5332,197.66,197.63,2.5335]
[1735658722211,2.5331,197.67,197.64,2.5335]
[1735658723012,12.31549999,197.72,197.61,6.2793]
[1735658723209,12.31549999,197.72,197.65,2.5333]
[1735658723704,3.3,197.74,197.62,1.5574]
[1735658723705,11.93691147,197.74,197.64,12.31549999]
[1735658723911,56.22762901,197.78,197.67,12.31549999]
[1735658724311,56.22762901,197.78,197.72,2.5324]
[1735658724708,15.61549999,197.8,197.72,2.5324]
[1735658724910,2.5321,197.75,197.71,2.5325]
[1735658725514,2.5321,197.75,197.67,299.31549999]
[1735658725708,2.5321,197.75,197.7,2.5327]
[1735658725909,2.5325,197.72,197.67,299.31549999]
[1735658726308,2.5325,197.72,197.67,301.84849999]
[1735658726815,12.31549999,197.74,197.67,287.0]
[1735658727014,15.61549999,197.74,197.62,1.5574]
[1735658727309,15.61549999,197.74,197.62,4.8574]
[1735658727713,12.31549999,197.71,197.62,1.5574]
[1735658727910,12.31549999,197.71,197.58,15.61549999]
[1735658728315,2.5337,197.63,197.58,15.61549999]
[1735658728914,2.5334,197.65,197.6,2.534]
[1735658729115,7.64330512,197.71,197.59,3.3]
[1735658729317,11.93977985,197.72,197.59,3.3]
[1735658730114,13.89619999,197.73,197.59,3.3]
[1735658730622,12.31549999,197.7,197.55,12.31549999]
[1735658730813,3.3,197.69,197.56,3.3]
[1735658731111,2.5338,197.62,197.58,2.5342]
[1735658731716,2.5338,197.62,197.59,2.5341]
[1735658731917,2.5336,197.64,197.56,3.3]
[1735658732419,2.5336,197.63,197.6,2.534]
[1735658733316,3.3,197.69,197.56,287.0]
[1735658733517,3.3,197.69,197.57,3.3]
[1735658734318,15.23892346,197.69,197.57,3.3]
[1735658734518,2.5339,197.61,197.57,3.3]
[1735658734718,2.5339,197.61,197.57,5.8344]
[1735658737318,2.5339,197.61,197.57,2.5344]
[1735658738123,7.64207598,197.68,197.58,12.31549999]
[1735658738424,21.08536088,197.72,197.62,12.31549999]
[1735658738613,21.08536088,197.72,197.62,15.61549999]
[1735658739325,2.5328,197.69,197.65,2.5332]
[1735658739525,87.64144352,197.75,197.65,2.5332]
[1735658739526,1.5807,197.73,197.65,2.5332]
[1735658739726,1.5807,197.73,197.62,15.61549999]
[1735658740027,1.5807,197.73,197.63,2.5335]
[1735658740227,1.5807,197.73,197.62,15.61549999]
[1735658740726,2.5329,197.69,197.65,2.5333]
[1735658742224,20.11694958,197.76,197.65,12.31549999]
[1735658742525,21.08536088,197.78,197.65,12.31549999]
[1735658742726,11.93387997,197.77,197.65,12.31549999]
[1735658742926,7.6379685,197.77,197.65,12.31549999]
[1735658743221,21.08536088,197.79,197.71,12.31549999]
[1735658743430,21.08536088,197.79,197.74,12.31549999]
[1735658743825,21.08536088,197.79,197.76,2.5318]
[1735658744225,2.5314,197.81,197.76,2.5318]
[1735658744625,2.5315,197.8,197.76,2.5318]
[1735658745430,2.5316,197.79,197.75,2.5321]
[1735658745630,11.92360852,197.85,197.74,12.31549999]
[1735658746133,20.10104522,197.85,197.74,12.31549999]
[1735658747530,2.5318,197.78,197.73,5.5588]
[1735658748329,4.29373131,197.84,197.73,3.0265]
[1735658748538,12.31549999,197.83,197.72,1.5837]
[1735658748832,3.3,197.82,197.72,1.5837]
[1735658749238,15.22360852,197.82,197.72,1.5837]
[1735658749939,2.532,197.76,197.72,1.5837]
[1735658750232,15.22360852,197.82,197.72,1.5837]
[1735658750437,2.5317,197.78,197.72,1.5837]
[1735658750637,10.92779495,197.82,197.72,1.5837]
[1735658750837,7.59154748,197.82,197.72,1.5837]
[1735658751038,15.21934243,197.82,197.72,1.5837]
[1735658751931,15.21934243,197.82,197.71,12.31549999]
[1735658752133,15.21934243,197.82,197.7,3.3]
[1735658752837,2.5322,197.75,197.7,5.8326]
[1735658753235,2.5322,197.75,197.7,3.3]
[1735658753435,2.5318,197.78,197.73,2.5322]
[1735658753634,15.21934243,197.82,197.73,2.5322]
[1735658753936,3.3,197.82,197.71,12.31549999]
[1735658754139,3.3,197.82,197.71,13.80789999]
[1735658755337,12.31549999,197.83,197.71,13.80789999]
[1735658755338,4.29135647,197.83,197.74,12.31549999]
[1735658755548,11.91871658,197.86,197.75,3.3]
[1735658755750,20.09203293,197.86,197.75,3.3]
[1735658755943,2.5314,197.81,197.77,2.5318]
[1735658758645,12.31549999,197.85,197.71,288.4924]
[1735658758949,12.31549999,197.85,197.71,1.4924]
[1735658759149,24.23421657,197.85,197.71,4.7924]
[1735658759444,2.5319,197.77,197.73,2.5322]
[1735658760850,2.5319,197.77,197.74,2.5322]
[1735658761354,2.5317,197.78,197.74,2.5322]
[1735658761551,2.5317,197.78,197.75,2.5321]
[1735658761749,1.5959,197.84,197.72,3.3]
[1735658761951,2.5314,197.81,197.77,2.5318]
[1735658762150,21.08536088,197.87,197.76,12.31549999]
[1735658762547,2.5311,197.83,197.79,2.5315]
[1735658763756,12.31549999,197.86,197.73,3.3]
[1735658763956,24.21730481,197.87,197.73,3.3]
[1735658764150,2.5314,197.8,197.76,2.5318]
[1735658764349,11.90180482,197.86,197.75,12.31549999]
[1735658764752,2.5315,197.8,197.76,2.5319]
[1735658766057,2.5313,197.81,197.73,290.3]
[1735658767754,20.0599072,197.88,197.75,2.532]
[1735658767957,2.5315,197.8,197.74,13.79749999]
[1735658768154,2.5315,197.8,197.74,15.31979999]
[1735658768753,4.28490158,197.87,197.74,302.31979999]
[1735658768955,20.0599072,197.88,197.77,12.31549999]
[1735658769154,8.16058134,197.88,197.77,12.31549999]
[1735658769358,2.531,197.84,197.8,2.5314]
[1735658769659,11.89617683,197.89,197.78,3.3]
[1735658769858,2.5306,197.87,197.82,2.5311]
[1735658770049,3.3,197.91,197.82,2.5311]
[1735658770255,15.19393342,197.91,197.82,2.5311]
[1735658770453,2.5307,197.86,197.82,2.5311]
[1735658770757,15.19393342,197.91,197.79,1.5352]
[1735658770953,2.5311,197.83,197.79,1.5352]
[1735658771259,12.31549999,197.89,197.79,1.5352]
[1735658771558,15.61549999,197.89,197.79,1.5352]
[1735658772058,15.61549999,197.89,197.8,2.5314]
[1735658772960,15.61549999,197.89,197.82,2.5311]
[1735658773258,12.31549999,197.89,197.82,2.5311]
[1735658773555,2.5308,197.86,197.82,2.5311]
[1735658774659,21.08536088,197.91,197.8,12.31549999]
[1735658775556,21.08536088,197.91,197.83,12.31549999]
[1735658775758,21.08536088,197.91,197.86,12.31549999]
[1735658776159,21.08536088,197.92,197.88,2.5303]
[1735658776452,21.08536088,197.92,197.86,12.31549999]
[1735658776960,21.08536088,197.92,197.87,2.5305]
[1735658777361,21.08536088,197.96,197.87,2.5305]
[1735658777660,2.5303,197.89,197.86,14.84609999]
[1735658778757,2.5302,197.9,197.87,2.5305]
[1735658782858,15.17725781,197.97,197.86,12.31549999]
[1735658783257,3.28,197.97,197.86,13.79179999]
[1735658783457,11.89725781,197.98,197.89,12.31549999]
[1735658783666,21.08536088,197.99,197.89,12.31549999]
[1735658783860,21.08536088,197.99,197.9,3.28]
[1735658784058,2.5294,197.96,197.93,2.5296]
[1735658785563,2.5295,197.95,197.92,2.5298]
[1735658786160,2.5293,197.97,197.93,2.5297]
[1735658788463,13.50272918,198.01,197.86,288.4763]
[1735658788663,2.5299,197.92,197.89,2.5302]
[1735658789068,12.31549999,197.99,197.87,15.59549999]
[1735658789264,2.5297,197.94,197.87,15.59549999]
[1735658789567,12.31549999,197.99,197.87,15.59549999]
[1735658789769,2.5296,197.95,197.91,2.53]
[1735658789967,1.6078,198.01,197.91,2.53]
[1735658790171,13.49900103,198.01,197.91,2.53]
[1735658790571,2.5296,197.95,197.92,2.5299]
[1735658790773,13.49900103,198.01,197.87,15.59549999]
[1735658791174,2.5293,197.97,197.9,2.5301]
[1735658791469,21.65497027,198.01,197.9,2.5301]
[1735658791674,4.28462292,198.0,197.9,2.5301]
[1735658791872,9.21437811,198.01,197.9,2.5301]
[1735658791873,13.49900103,198.01,197.9,2.5301]
[1735658792378,2.5297,197.94,197.9,2.5301]
[1735658792877,2.5294,197.96,197.92,2.5298]
[1735658793076,13.49900103,198.01,197.87,15.59549999]
[1735658793371,2.5295,197.96,197.92,2.5299]
[1735658793572,13.49900103,198.01,197.88,12.31549999]
[1735658794177,2.5296,197.95,197.91,2.5299]
[1735658794567,10.88657811,198.01,197.88,12.31549999]
[1735658794772,2.5295,197.96,197.92,2.5298]
[1735658795073,3.28,198.01,197.88,12.31549999]
[1735658795266,3.28,198.01,197.88,13.87509999]
[1735658795470,2.5292,197.98,197.94,2.5295]
[1735658795671,3.28,198.01,197.91,12.31549999]
[1735658795965,2.5292,197.98,197.94,2.5296]
[1735658796777,2.5292,197.98,197.91,12.31549999]
[1735658797076,24.36536088,198.05,197.94,12.31549999]
[1735658797273,21.08536088,198.05,197.92,3.28]
[1735658797570,2.5285,198.03,197.97,12.31549999]
[1735658797776,21.08536088,198.06,197.97,3.28]
[1735658798077,21.04005978,198.06,197.97,5.8092]
[1735658798476,2.5288,198.01,197.97,5.8092]
[1735658798976,2.5286,198.03,197.94,12.31549999]
[1735658799177,2.5286,198.03,197.95,3.28]
[1735658799372,12.31549999,198.09,197.97,12.31549999]
[1735658799677,2.5284,198.04,198.0,2.5287]
[1735658800277,2.5279,198.08,198.04,2.5283]
[1735658801279,2.5277,198.09,198.01,4.8076]
[1735658801777,2.5277,198.09,198.04,2.5283]
[1735658801974,1.5073,198.14,198.04,2.5283]
[1735658801975,2.5279,198.08,198.04,2.5283]
[1735658802378,1.5073,198.14,198.03,2.5285]
[1735658802576,2.5281,198.07,198.03,2.5285]
[1735658804281,2.5285,198.03,197.99,5.809]
[1735658805072,2.5285,198.04,198.0,2.5288]
[1735658805476,12.31549999,198.1,198.0,2.5288]
[1735658805678,2.5285,198.03,198.0,2.5288]
[1735658806185,3.28,198.11,198.0,15.59549999]
[1735658806804,3.28,198.11,198.01,2.5286]
[1735658807503,2.5283,198.05,198.01,2.5286]
[1735658807709,12.31549999,198.1,197.97,12.31549999]
[1735658808005,12.31549999,198.07,197.96,1.5782]
[1735658808220,12.31549999,198.07,197.95,3.28]
[1735658808522,2.5292,197.98,197.94,13.86199999]
[1735658808716,12.31549999,198.04,197.94,1.5465]
[1735658809014,2.5293,197.97,197.94,1.5465]
[1735658809219,12.31549999,198.04,197.91,12.31549999]
[1735658809413,12.31549999,198.01,197.91,14.84549999]
[1735658809607,12.31549999,198.01,197.91,12.31549999]
[1735658809816,12.31549999,198.01,197.92,2.5299]
[1735658810117,3.28,198.03,197.91,12.31549999]
[1735658810118,2.5291,197.99,197.91,12.31549999]
[1735658810313,3.28,198.03,197.88,3.28]
[1735658810314,3.28,198.03,197.94,12.31549999]
[1735658810618,2.5287,198.02,197.97,2.5291]
[1735658810905,12.31549999,198.07,197.97,2.5291]
[1735658812108,1.5544,198.09,198.0,2.5288]
[1735658812708,2.5282,198.06,198.01,2.5286]
[1735658813206,2.5282,198.06,197.98,15.59549999]
[1735658813401,1.5544,198.09,197.98,15.59549999]
[1735658813595,12.31549999,198.08,197.98,3.28]
[1735658813795,12.31549999,198.08,197.96,288.5871]
[1735658813989,2.5287,198.02,197.97,2.5291]
[1735658814188,12.31549999,198.08,197.96,4.8671]
[1735658814690,2.5286,198.02,197.98,2.5291]
[1735658816284,3.28,198.07,197.94,1.47]
[1735658816589,3.28,198.07,197.95,12.31549999]
[1735658816883,2.5287,198.01,197.97,2.5291]
[1735658817285,10.87883166,198.07,197.97,2.5291]
[1735658817486,2.5289,198.0,197.96,2.5293]
[1735658819896,2.5288,198.01,197.97,2.5292]
[1735658820091,10.88850551,198.07,197.95,12.31549999]
[1735658820292,7.5676762,198.07,197.95,15.59549999]
[1735658820488,15.17618171,198.07,197.96,2.5293]
[1735658820896,2.529,198.0,197.96,2.5293]
[1735658821396,15.17618171,198.07,197.95,15.59549999]
[1735658821597,2.5287,198.02,197.97,2.5291]
[1735658821798,15.17618171,198.07,197.97,2.5291]
[1735658822194,2.5289,198.0,197.97,2.5291]
[1735658822398,2.5289,198.0,197.96,2.5294]
[1735658822698,15.17618171,198.07,197.96,2.5294]
[1735658823300,15.17618171,198.07,197.95,15.59549999]
[1735658823496,2.529,197.99,197.95,5.8095]
[1735658823898,2.529,197.99,197.95,3.28]
[1735658824096,2.529,197.99,197.96,2.5294]
[1735658824303,2.5289,198.0,197.95,3.28]
[1735658824699,11.90032264,198.07,197.99,12.31549999]
[1735658824893,12.31549999,198.15,198.02,12.31549999]
[1735658825199,4.7458,198.16,198.06,2.528]
[1735658825396,1.4658,198.16,198.05,15.59549999]
[1735658825600,210.85360881,198.17,198.05,15.59549999]
[1735658825803,210.85360881,198.17,198.08,12.31549999]
[1735658826001,69.24631918,198.17,198.08,12.31549999]
[1735658826204,69.24631918,198.17,198.11,12.31549999]
[1735658826403,69.24631918,198.17,198.13,2.5271]
[1735658826704,69.24631918,198.17,198.12,3.28]
[1735658826907,69.24631918,198.17,198.15,2.5269]
[1735658827205,69.24631918,198.17,198.12,3.28]
[1735658827401,2.5264,198.19,198.12,3.28]
[1735658827603,2.5264,198.19,198.12,5.8073]
[1735658828408,2.5264,198.19,198.12,3.28]
[1735658828607,2.5264,198.19,198.14,12.31549999]
[1735658828808,1.4565,198.28,198.14,12.31549999]
[1735658828999,4.7365,198.28,198.14,12.31549999]
[1735658829204,16.60880823,198.28,198.14,12.31549999]
[1735658829403,13.32880823,198.28,198.14,12.31549999]
[1735658829604,1.4565,198.28,198.14,12.31549999]
[1735658829804,1.4565,198.28,198.17,12.31549999]
[1735658830004,2.5258,198.25,198.18,2.5264]
[1735658830402,2.5258,198.25,198.17,15.59549999]
[1735658830709,2.5258,198.25,198.19,2.5264]
[1735658831203,1.5379,198.29,198.2,2.5263]
[1735658831707,1.5379,198.29,198.2,14.84179999]
[1735658832103,12.31549999,198.32,198.2,14.84179999]
[1735658832600,4.7725,198.35,198.2,12.31549999]
[1735658832801,2.5253,198.29,198.21,1.5257]
[1735658833102,17.08799999,198.35,198.24,2.5257]
[1735658833406,4.7725,198.35,198.23,12.31549999]
[1735658834007,1.4925,198.35,198.23,12.31549999]
[1735658834303,1.5911,198.36,198.26,12.31549999]
[1735658834508,2.5249,198.31,198.26,12.31549999]
[1735658834905,1.5911,198.36,198.26,12.31549999]
[1735658835105,1.5911,198.36,198.27,3.28]
[1735658836005,2.5249,198.32,198.27,3.28]
[1735658836710,2.5249,198.32,198.29,12.31549999]
[1735658837010,1.5911,198.36,198.29,12.31549999]
[1735658838412,2.5248,198.33,198.29,12.31549999]
[1735658839008,2.5248,198.32,198.29,12.31549999]
[1735658839608,1.5911,198.36,198.27,3.28]
[1735658839812,1.5911,198.36,198.27,15.59549999]
[1735658839813,2.5249,198.31,198.27,15.59549999]
[1735658840909,1.5911,198.36,198.27,15.59549999]
[1735658841910,1.5911,198.36,198.28,2.5252]
[1735658843317,1.5911,198.36,198.29,12.31549999]
[1735658843817,1.4634,198.4,198.3,2.525]
[1735658844014,15.21,198.6,198.32,12.31549999]
[1735658844015,2.5237,198.41,198.32,12.31549999]
[1735658844218,4.791,198.44,198.32,12.31549999]
[1735658845015,12.31549999,198.42,198.29,13.89949999]
[1735658845520,4.791,198.44,198.29,13.89949999]
[1735658845717,12.31549999,198.42,198.29,13.89949999]
[1735658846419,2.5247,198.33,198.29,13.89949999]
[1735658847213,2.5248,198.32,198.29,12.31549999]
[1735658847813,15.59549999,198.39,198.23,1.4988]
[1735658848011,3.28,198.38,198.25,12.31549999]
[1735658848213,12.31549999,198.36,198.23,1.4988]
[1735658848413,2.5256,198.26,198.23,4.7788]
[1735658848622,12.31549999,198.33,198.23,4.7788]
[1735658848914,2.5256,198.26,198.22,15.59549999]
[1735658849715,2.5254,198.27,198.22,18.12139999]
[1735658849918,2.5254,198.27,198.22,15.59549999]
[1735658850221,12.31549999,198.33,198.22,15.59549999]
[1735658850422,2.5254,198.28,198.24,2.5258]
[1735658850616,12.31549999,198.33,198.22,15.59549999]
[1735658851013,2.5254,198.28,198.22,15.59549999]
[1735658851321,1.55,198.35,198.25,12.31549999]
[1735658851522,1.55,198.35,198.22,290.28]
[1735658851725,1.55,198.35,198.24,12.31549999]
[1735658853324,1.55,198.35,198.24,15.59549999]
[1735658853525,12.31549999,198.33,198.21,1.5257]
[1735658854019,2.5261,198.22,198.21,1.5257]
[1735658854727,2.5261,198.22,198.19,3.28]
[1735658854923,12.31549999,198.3,198.17,13.81429999]
[1735658855223,12.31549999,198.3,198.17,16.34099999]
[1735658855428,12.31549999,198.27,198.14,12.31549999]
[1735658855618,2.5266,198.19,198.14,18.12259999]
[1735658856026,2.5263,198.21,198.15,2.5268]
[1735658856226,3.28,198.26,198.17,12.31549999]
[1735658856426,4.884,198.31,198.2,12.31549999]
[1735658856630,2.5259,198.24,198.2,12.31549999]
[1735658856827,4.884,198.31,198.2,12.31549999]
[1735658857729,4.884,198.31,198.19,3.28]
[1735658858032,12.31549999,198.29,198.17,12.31549999]
[1735658858926,12.31549999,198.29,198.16,3.28]
[1735658859333,12.31549999,198.29,198.14,12.31549999]
[1735658859633,2.5266,198.19,198.14,15.59549999]
[1735658859832,15.59549999,198.26,198.14,15.59549999]
[1735658860030,2.5266,198.18,198.14,15.59549999]
[1735658860833,12.31549999,198.23,198.13,4.8613]
[1735658861431,12.31549999,198.23,198.13,1.5813]
[1735658862129,2.5266,198.18,198.13,1.5813]
[1735658863130,2.5264,198.2,198.14,12.31549999]
[1735658863535,2.5264,198.2,198.15,2.5268]
[1735658864036,2.5264,198.19,198.15,2.5268]
[1735658865031,2.5264,198.19,198.16,2.5268]
[1735658865432,2.5264,198.19,198.14,12.31549999]
[1735658865634,2.5266,198.18,198.15,2.5269]
[1735658867032,2.5266,198.18,198.14,14.84249999]
[1735658868745,2.5266,198.18,198.15,2.5269]
[1735658870947,2.5265,198.19,198.16,2.5268]
[1735658872445,2.5265,198.19,198.15,2.5269]
[1735658873046,2.5268,198.17,198.13,7.3685]
[1735658873247,12.31549999,198.23,198.13,4.8413]
[1735658874356,15.57549999,198.23,198.13,4.8413]
[1735658875158,12.31549999,198.23,198.13,7.3685]
[1735658875360,12.31549999,198.23,198.13,4.8413]
[1735658876057,2.5266,198.19,198.15,2.5269]
[1735658876256,12.31549999,198.23,198.13,4.8413]
[1735658876659,2.5266,198.18,198.14,2.527]
[1735658877160,2.5266,198.18,198.15,2.5269]
[1735658877360,12.31549999,198.27,198.14,12.31549999]
[1735658877953,2.5263,198.21,198.17,2.5266]
[1735658878152,2.5263,198.21,198.14,12.31549999]
[1735658878357,2.5263,198.21,198.18,7.83489173]
[1735658878555,2.5264,198.19,198.18,7.83489173]
[1735658878761,7.83489173,198.23,198.16,7.83489173]
[1735658879461,2.5262,198.21,198.18,2.5266]
[1735658879664,2.5262,198.21,198.18,7.83489173]
[1735658880162,2.526,198.23,198.18,7.83489173]
[1735658880359,3.26,198.3,198.22,7.83489173]
[1735658880554,7.83489173,198.29,198.22,7.83489173]
[1735658881063,9.43889173,198.31,198.24,7.83489173]
[1735658882265,1.604,198.31,198.21,2.5261]
[1735658883566,2.5258,198.25,198.2,14.76207524]
[1735658883866,1.604,198.31,198.2,14.76207524]
[1735658884068,2.5258,198.24,198.2,14.76207524]
[1735658884267,12.23577524,198.3,198.18,1.5539]
[1735658884567,2.5263,198.2,198.16,3.26]
[1735658884766,2.5263,198.2,198.14,15.49577524]
[1735658885357,2.5263,198.2,198.16,2.5268]
[1735658885563,12.23577524,198.24,198.14,15.49577524]
[1735658885768,2.5267,198.18,198.14,15.49577524]
[1735658885961,12.23577524,198.24,198.14,15.49577524]
[1735658886163,2.5266,198.18,198.14,15.49577524]
[1735658886568,12.23577524,198.24,198.15,2.5269]
[1735658887268,2.5266,198.18,198.14,18.02287524]
[1735658887767,12.23577524,198.24,198.14,18.02287524]
[1735658887969,2.5267,198.17,198.14,18.02287524]
[1735658888659,2.5267,198.17,198.14,15.49577524]
[1735658889059,2.5266,198.18,198.15,2.5269]
[1735658891162,12.23577524,198.24,198.14,18.02277524]
[1735658891366,24.16017671,198.24,198.13,3.0893]
[1735658891570,12.23577524,198.25,198.13,3.0893]
[1735658891863,3.0289,198.26,198.15,12.23577524]
[1735658892069,8.19189095,198.26,198.18,12.23577524]
[1735658892269,20.12304499,198.29,198.18,12.23577524]
[1735658892662,2.5261,198.22,198.18,12.23577524]
[1735658892866,4.30411889,198.28,198.18,14.76227524]
[1735658893074,20.12304499,198.29,198.18,12.23577524]
[1735658893766,2.5262,198.22,198.18,12.23577524]
[1735658893972,4.30411889,198.28,198.19,2.5264]
[1735658894474,23.38304499,198.29,198.19,2.5264]
[1735658894665,4.30411889,198.28,198.19,2.5264]
[1735658895171,2.526,198.23,198.19,2.5264]
[1735658897071,2.5261,198.22,198.18,14.76227524]
[1735658898072,2.5256,198.26,198.18,12.23577524]
[1735658898873,2.5257,198.25,198.21,2.5261]
[1735658899969,2.5259,198.24,198.2,2.5263]
[1735658900167,15.19678458,198.29,198.18,12.23577524]
[1735658900466,12.23577524,198.23,198.12,28.01168938]
[1735658900674,12.23577524,198.16,198.12,28.01168938]
[1735658901066,14.76297524,198.13,198.12,16.38768938]
[1735658901262,12.23577524,198.13,198.1,16.38768938]
[1735658901463,2.5275,198.11,198.1,16.38768938]
[1735658901666,5.7875,198.11,198.1,7.00292234]
[1735658901867,3.26,198.11,198.09,56.02337877]
[1735658902074,2.5278,198.08,198.07,113.8259294]
[1735658902573,2.5278,198.08,198.02,2.5286]
[1735658902770,8.19438107,198.12,198.03,12.23577524]
[1735658903171,3.26,198.15,198.05,2.5282]
[1735658903569,3.26,198.15,198.06,12.23577524]
[1735658903972,24.25395318,198.15,198.07,1.54]
[1735658904371,24.25395318,198.15,198.05,1.5922]
[1735658904677,12.23577524,198.13,198.01,1.54]
[1735658904875,12.23577524,198.1,197.98,3.26]
[1735658905073,12.23577524,198.04,197.94,1.6056]
[1735658905271,15.49577524,198.04,197.93,1.5523]
[1735658905466,2.5293,197.97,197.93,1.5523]
[1735658905872,1.5513,198.09,197.95,12.23577524]
[1735658906078,12.23577524,198.07,197.95,12.23577524]
[1735658906377,12.23577524,198.07,197.97,2.5292]
[1735658906674,12.23577524,198.07,197.95,12.23577524]
[1735658906976,3.26,198.08,197.98,12.23577524]
[1735658907377,3.26,198.08,198.01,12.23577524]
[1735658908177,20.99395318,198.09,198.01,12.23577524]
[1735658908571,3.26,198.13,198.01,12.23577524]
[1735658909479,3.26,198.13,198.04,12.23577524]
[1735658909680,3.26,198.13,198.07,12.23577524]
[1735658909869,7.8222,198.18,198.07,12.23577524]
[1735658910779,2.5272,198.14,198.08,2.5277]
[1735658911375,2.5268,198.17,198.12,2.5273]
[1735658911571,103.05707478,198.21,198.1,12.23577524]
[1735658911775,24.25395318,198.24,198.13,12.23577524]
[1735658911982,2.5264,198.2,198.14,2.5271]
[1735658912181,24.25395318,198.24,198.14,2.5271]
[1735658912383,3.26,198.24,198.14,2.5271]
[1735658912784,2.5264,198.2,198.14,2.5271]
[1735658914183,2.5261,198.22,198.16,14.76247524]
[1735658914387,2.5261,198.22,198.16,12.23577524]
[1735658914686,1.5386,198.25,198.16,12.23577524]
[1735658914877,13.77437524,198.25,198.12,12.23577524]
[1735658915382,2.5266,198.19,198.13,2.5271]
[1735658915579,12.23577524,198.22,198.12,12.23577524]
[1735658915784,12.23577524,198.19,198.09,3.26]
[1735658915977,2.5273,198.13,198.09,3.26]
[1735658917176,2.5273,198.13,198.09,5.7877]
[1735658917380,2.527,198.15,198.09,15.49577524]
[1735658917686,12.23577524,198.19,198.09,15.49577524]
[1735658918687,12.23577524,198.19,198.09,18.02347524]
[1735658918888,12.23577524,198.19,198.09,15.49577524]
[1735658919588,12.23577524,198.19,198.09,18.02347524]
[1735658919784,4.7243,198.21,198.09,15.49577524]
[1735658919988,12.23577524,198.22,198.12,2.5273]
[1735658920184,15.49577524,198.22,198.09,15.49577524]
[1735658920382,3.26,198.22,198.12,12.23577524]
[1735658921086,3.26,198.24,198.14,2.527]
[1735658923691,3.26,198.24,198.12,12.23577524]
[1735658923887,3.26,198.24,198.15,2.5269]
[1735658924891,3.26,198.24,198.12,12.23577524]
[1735658925090,12.23577524,198.22,198.09,302.49577524]
[1735658925291,12.23577524,198.22,198.1,3.26]
[1735658925989,12.23577524,198.22,198.12,2.5273]
[1735658926291,15.49577524,198.22,198.1,3.26]
[1735658926486,15.49577524,198.22,198.11,2.5274]
[1735658926986,13.77437524,198.25,198.12,12.23577524]
[1735658927183,1.5386,198.25,198.16,12.23577524]
[1735658927581,1.5386,198.25,198.16,14.76247524]
[1735658927983,1.5386,198.25,198.16,12.23577524]
[1735658928184,1.5386,198.25,198.18,2.5266]
[1735658928389,1.5386,198.25,198.16,12.23577524]
[1735658929484,1.5386,198.25,198.17,2.5267]
[1735658930097,1.5386,198.25,198.16,12.23577524]
[1735658930098,1.5386,198.25,198.18,2.5266]
[1735658931090,1.5386,198.25,198.17,2.5267]
[1735658933093,1.5386,198.25,198.16,12.23577524]
[1735658933286,1.5817,198.28,198.19,12.23577524]
[1735658933987,1.5817,198.28,198.18,2.5265]
[1735658934296,13.81747524,198.28,198.16,4.8065]
[1735658934889,13.81747524,198.28,198.16,7.3333]
[1735658935395,13.81747524,198.28,198.17,2.5266]
[1735658936291,13.81747524,198.28,198.16,4.8065]
[1735658936486,13.81747524,198.28,198.18,2.5265]
[1735658936691,13.81747524,198.28,198.16,1.5465]
[1735658937393,13.81747524,198.28,198.2,2.5263]
[1735658937693,13.81747524,198.28,198.16,1.5465]